bitfinex/quotes_ETHUSD_20220226
["timestamp","ask_amount","ask_price","bid_price","bid_amount"]
[1645918538855,0.26141786,2778.9,2777.9,1.2149]
[1645918539047,0.26141786,2778.7,2778.0,0.95308488]
[1645918539247,0.26141786,2778.7,2777.9,1.2149]
[1645918539450,0.21141786,2778.7,2777.9,1.2149]
[1645918539649,0.21141786,2778.7,2778.0,0.95450382]
[1645918539893,0.21141786,2778.7,2777.9,1.2149]
[1645918540093,0.51141786,2778.7,2778.2,0.002792]
[1645918540295,0.21141786,2778.7,2778.2,0.002792]
[1645918540895,0.00394728,2778.8,2778.2,0.002792]
[1645918541095,0.66004728,2779.0,2778.0,0.95447506]
[1645918541303,0.00394728,2778.8,2778.0,0.95447506]
[1645918542702,0.25394728,2779.0,2778.1,3.5]
[1645918542904,0.3561,2779.1,2778.1,3.5]
[1645918543102,0.3561,2779.1,2778.2,0.95447506]
[1645918543950,0.0022996,2779.3,2778.3,0.519]
[1645918544154,0.0022996,2779.3,2778.4,12.33447506]
[1645918544349,0.0022996,2779.3,2778.6,10.88]
[1645918544547,0.47201626,2779.9,2778.8,10.88]
[1645918544747,0.47201626,2779.9,2778.9,0.95447506]
[1645918544947,0.00509063,2779.3,2778.9,0.95447506]
[1645918545146,0.00509063,2779.3,2778.8,12.399]
[1645918545546,0.00509063,2779.3,2778.8,11.399]
[1645918545747,0.00509063,2779.3,2778.9,1.02529554]
[1645918545947,1.4251,2779.9,2778.9,1.02529554]
[1645918546146,1.069,2779.7,2778.9,1.02810583]
[1645918546348,1.069,2779.6,2778.9,1.02810583]
[1645918546548,1.069,2779.5,2778.9,0.00281029]
[1645918546946,1.069,2779.5,2778.8,1.02532178]
[1645918547390,1.069,2779.5,2778.9,0.00281029]
[1645918548297,1.069,2779.5,2778.8,11.90521362]
[1645918548494,0.00533575,2779.3,2778.9,0.00533667]
[1645918549399,1.069,2779.5,2778.8,11.88]
[1645918549596,0.00533566,2779.3,2778.9,1.03047236]
[1645918549796,0.00533566,2779.3,2778.9,0.00533658]
[1645918550596,1.069,2779.5,2778.8,10.88]
[1645918550798,0.00254506,2779.3,2778.9,1.02514992]
[1645918551446,0.00254506,2779.3,2779.0,1.02514992]
[1645918551648,0.00254506,2779.3,2778.8,1.02514992]
[1645918551847,1.069,2779.5,2778.9,1.02517575]
[1645918552050,0.00221591,2779.3,2779.0,1.02517575]
[1645918552246,0.00221591,2779.3,2778.7,6.6562]
[1645918552247,0.00221591,2779.3,2778.8,1.02517575]
[1645918552446,0.00221591,2779.3,2778.9,1.02534631]
[1645918552646,0.00221591,2779.3,2779.0,1.02534631]
[1645918552847,0.00221591,2779.3,2778.8,1.02534631]
[1645918553046,1.069,2779.5,2778.7,6.6562]
[1645918553247,0.00501013,2779.3,2778.9,0.005011]
[1645918553448,0.00501013,2779.3,2779.0,1.02529473]
[1645918554246,1.069,2779.5,2779.0,1.02529473]
[1645918554448,0.00501013,2779.3,2778.9,0.005011]
[1645918554651,0.00501013,2779.3,2779.0,1.02549138]
[1645918555498,1.069,2779.5,2779.0,1.02549138]
[1645918555499,1.069,2779.5,2779.3,0.00681614]
[1645918556902,1.0741001,2779.5,2779.3,0.00681614]
[1645918557101,1.0741001,2779.5,2779.4,11.90564485]
[1645918557304,1.0741001,2779.5,2779.4,13.42464485]
[1645918557501,1.0741001,2779.5,2779.4,12.42464485]
[1645918557905,1.069,2779.5,2779.4,12.42464485]
[1645918558559,1.069,2779.5,2779.4,1.54489675]
[1645918559357,1.069,2779.5,2779.4,12.42489675]
[1645918560056,1.069,2779.5,2779.4,13.32450675]
[1645918561057,1.069,2779.5,2779.4,12.42489675]
[1645918561857,1.069,2779.5,2779.4,13.42489675]
[1645918563597,1.069,2779.5,2779.4,1.02589675]
[1645918563898,1.069,2779.5,2779.4,1.02451392]
[1645918564100,1.069,2779.5,2779.3,0.00681614]
[1645918565495,1.07403081,2779.5,2779.3,0.00681614]
[1645918566351,1.069,2779.5,2779.3,0.00681614]
[1645918566549,1.07403048,2779.5,2779.3,0.00681614]
[1645918567452,1.069,2779.5,2779.3,0.00681614]
[1645918568054,1.07403048,2779.5,2779.3,0.00681614]
[1645918568755,1.069,2779.5,2779.3,0.00681614]
[1645918568957,1.07403048,2779.5,2779.3,0.00681614]
[1645918569796,1.069,2779.5,2779.3,0.00681614]
[1645918570200,1.07403051,2779.5,2779.3,0.00681614]
[1645918571201,1.069,2779.5,2779.3,0.00681614]
[1645918571505,1.07403051,2779.5,2779.3,0.00681614]
[1645918572303,1.069,2779.5,2779.3,0.00681614]
[1645918572503,1.07403051,2779.5,2779.3,0.00681614]
[1645918573557,1.069,2779.5,2779.3,0.00681614]
[1645918573746,1.07403112,2779.5,2779.3,0.00681614]
[1645918574648,1.069,2779.5,2779.3,0.00681614]
[1645918575047,1.07403112,2779.5,2779.3,0.00681614]
[1645918575848,1.069,2779.5,2779.3,0.00681614]
[1645918576248,1.07403112,2779.5,2779.3,0.00681614]
[1645918577160,1.069,2779.5,2779.3,0.00681614]
[1645918577401,1.07403047,2779.5,2779.3,0.00681614]
[1645918578205,0.00392764,2779.9,2779.5,0.38703927]
[1645918578405,1.3,2780.0,2779.5,0.38703927]
[1645918578606,1.32011886,2780.0,2779.5,0.38703927]
[1645918578807,1.02011886,2780.0,2779.5,0.38703927]
[1645918579411,1.02011886,2780.0,2779.6,10.88]
[1645918579614,1.0,2780.0,2779.6,10.88]
[1645918579810,1.0,2780.0,2779.6,11.88]
[1645918580009,1.0,2780.0,2779.8,10.88]
[1645918580210,1.0,2780.0,2779.8,11.399]
[1645918581046,1.00223649,2780.0,2779.8,11.399]
[1645918581948,1.0,2780.0,2779.8,11.399]
[1645918582146,1.00223649,2780.0,2779.8,11.399]
[1645918583054,1.0,2780.0,2779.8,0.519]
[1645918583250,1.0,2780.0,2779.8,11.399]
[1645918583450,1.00503742,2780.0,2779.8,0.519]
[1645918584049,1.00503742,2780.0,2779.9,1.0075018]
[1645918584252,1.0,2780.0,2779.9,1.0075018]
[1645918584651,1.00519455,2780.0,2779.7,1.0075018]
[1645918584918,1.00519455,2780.0,2779.8,1.0075018]
[1645918585120,1.00519455,2780.0,2779.9,1.0075018]
[1645918585521,1.0,2780.0,2779.6,0.6514018]
[1645918586924,0.00519465,2779.9,2779.6,0.6514018]
[1645918587928,1.0,2780.0,2779.6,0.6514018]
[1645918588334,0.0050232,2779.9,2779.6,0.6514018]
[1645918589142,1.0,2780.0,2779.6,0.6514018]
[1645918589346,0.0050232,2779.9,2779.6,0.6514018]
[1645918590247,1.0,2780.0,2779.6,0.6514018]
[1645918590648,0.0050232,2779.9,2779.6,0.6514018]
[1645918591350,0.8550232,2780.0,2779.6,0.6514018]
[1645918591751,0.00503462,2779.9,2779.6,0.6514018]
[1645918592795,0.8550232,2780.0,2779.6,0.6514018]
[1645918593397,0.8550232,2780.0,2779.6,11.5314018]
[1645918593599,0.8550232,2780.0,2779.6,10.88]
[1645918595597,0.86036637,2780.0,2779.6,11.399]
[1645918595799,0.86036637,2780.0,2779.6,11.5428]
[1645918596466,0.8550232,2780.0,2779.6,11.5428]
[1645918596669,0.86036637,2780.0,2779.6,11.5428]
[1645918597670,0.8550232,2780.0,2779.6,11.5428]
[1645918597869,0.86036637,2780.0,2779.6,11.5428]
[1645918598071,0.02136866,2780.6,2780.1,0.27965922]
[1645918598676,0.00392764,2780.8,2780.1,0.27965922]
[1645918600097,0.8420276,2780.9,2780.1,0.27965922]
[1645918600302,0.00534271,2780.6,2780.1,0.27965922]
[1645918601101,0.3561,2780.7,2780.1,0.27965922]
[1645918601500,1.45135333,2780.9,2780.1,0.27965922]
[1645918601501,0.00534281,2780.5,2780.1,0.27965922]
[1645918602101,0.3561,2780.4,2780.1,0.27965922]
[1645918602300,3.8561,2780.3,2780.1,0.27965922]
[1645918602504,3.8561,2780.2,2780.1,0.27965922]
[1645918602703,4.1561,2780.2,2780.1,0.27965922]
[1645918603104,4.1561,2780.2,2779.5,0.39238398]
[1645918603105,0.3561,2780.0,2779.5,0.39238398]
[1645918603405,5.35074868,2779.8,2779.5,0.39238398]
[1645918603662,4.0,2779.7,2779.5,0.38703927]
[1645918603872,3.8561,2779.6,2779.5,0.39238348]
[1645918604064,4.1561,2779.6,2779.5,0.39238348]
[1645918604665,0.6561,2779.6,2779.5,0.39238348]
[1645918604862,0.6561,2779.6,2779.5,0.38703927]
[1645918605463,4.1561,2779.6,2779.5,0.38703927]
[1645918605765,1.17743778,2779.6,2779.5,0.38703927]
[1645918607501,1.17743778,2779.6,2779.5,1.36761396]
[1645918607899,1.17743778,2779.6,2779.5,1.36756833]
[1645918609106,1.17743778,2779.6,2779.5,0.38703927]
[1645918609703,4.67743778,2779.6,2779.5,0.38703927]
[1645918610104,1.17743778,2779.6,2779.5,0.38703927]
[1645918612349,0.82133778,2779.6,2779.5,0.38703927]
[1645918615201,1.17743778,2779.6,2779.5,0.38703927]
[1645918615401,0.82133778,2779.6,2779.5,0.38703927]
[1645918616204,0.81367595,2779.6,2779.5,0.38703927]
[1645918618207,0.81367595,2779.6,2779.5,1.364688]
[1645918618406,0.81367595,2779.6,2779.5,0.38703927]
[1645918618655,0.81367595,2779.6,2779.5,1.36463541]
[1645918618856,0.81367595,2779.6,2779.5,0.38703927]
[1645918619055,0.81367595,2779.6,2779.5,1.36463633]
[1645918619258,0.81367595,2779.6,2779.5,0.38703927]
[1645918621757,0.81367595,2779.6,2779.5,1.36457623]
[1645918623012,0.81367595,2779.6,2779.5,0.38703927]
[1645918623013,4.66977595,2779.6,2779.5,0.38703927]
[1645918623406,6.18877595,2779.6,2779.5,0.38703927]
[1645918624011,7.49501068,2779.6,2779.5,0.38703927]
[1645918626052,6.49501068,2779.6,2779.5,0.38703927]
[1645918626252,16.49501068,2779.6,2779.5,0.38703927]
[1645918626454,17.44424511,2779.6,2779.5,0.38703927]
[1645918627055,3.887,2779.5,2779.4,0.00502172]
[1645918627256,3.887,2779.5,2779.4,2.172e-05]
[1645918627257,15.87122089,2779.5,2779.4,2.172e-05]
[1645918627458,0.3561,2779.0,2778.1,3.2129]
[1645918627653,2.7013791,2778.8,2778.2,0.96952454]
[1645918627854,0.3,2778.7,2778.2,0.96952454]
[1645918628057,0.3,2778.7,2777.8,1.0]
[1645918628058,0.3,2778.7,2778.3,0.96952454]
[1645918628259,0.3,2778.7,2778.4,0.96952454]
[1645918628460,0.3,2778.7,2777.8,1.0]
[1645918628658,5.52555126,2778.6,2777.9,0.96917162]
[1645918628859,3.772537,2778.5,2777.9,0.96917162]
[1645918629059,3.9020382,2778.5,2777.8,1.0]
[1645918629259,0.3,2778.4,2777.8,1.0]
[1645918630294,0.3,2778.4,2778.0,0.00534562]
[1645918630499,1.49973855,2778.5,2778.0,0.00534562]
[1645918630694,0.3,2778.5,2778.0,0.00534562]
[1645918631100,0.21042206,2778.5,2778.0,0.00534562]
[1645918631295,0.90052,2778.5,2777.6,0.00324781]
[1645918631504,0.3561,2778.3,2777.6,0.00324781]
[1645918631700,0.3561,2778.3,2778.1,0.00534547]
[1645918631701,0.74869552,2778.2,2778.1,0.00534547]
[1645918631896,5.8872442,2778.2,2778.1,0.00534547]
[1645918632100,7.3836442,2778.2,2778.1,0.00534547]
[1645918632301,9.0840712,2778.2,2778.1,0.00534547]
[1645918632502,0.9008135,2777.6,2776.8,0.00324781]
[1645918632706,0.90086,2777.4,2776.7,3.1098]
[1645918632904,3.5,2777.3,2776.7,3.1098]
[1645918633102,3.5,2777.3,2776.4,0.00324781]
[1645918633299,4.5,2777.3,2776.4,0.00324781]
[1645918633564,0.9009081,2777.2,2776.4,0.00324781]
[1645918633763,1.80201,2777.0,2776.4,0.00324781]
[1645918633964,1.80201,2777.0,2776.2,5.1153]
[1645918633965,3.5,2776.9,2776.7,0.00534688]
[1645918634162,0.3,2776.9,2776.7,0.00534688]
[1645918634568,2.10201,2777.0,2776.7,0.00534688]
[1645918634764,3.35911,2777.0,2776.3,0.00324781]
[1645918634964,0.1957,2776.9,2776.3,0.00324781]
[1645918635165,0.90105,2776.8,2776.1,3.10204781]
[1645918635378,0.90103,2776.7,2776.1,3.0988]
[1645918636168,2.7031749,2776.7,2776.1,3.0988]
[1645918636565,3.7031749,2776.7,2776.1,3.0988]
[1645918636764,4.0031749,2776.7,2776.1,3.0988]
[1645918637401,0.90112,2776.6,2776.1,3.0988]
[1645918637603,0.3,2776.5,2776.1,3.0988]
[1645918638006,1.20109,2776.5,2776.1,3.0988]
[1645918638201,1.50109,2776.5,2776.1,3.0988]
[1645918638402,1.50109,2776.5,2775.8,0.00324781]
[1645918638609,2.60558154,2776.5,2776.2,0.0053438]
[1645918638807,3.3034063,2776.5,2776.2,0.0053438]
[1645918639005,3.49173261,2776.5,2776.2,0.0053438]
[1645918639409,3.51981854,2776.5,2776.2,0.0053438]
[1645918639607,1.89624584,2776.5,2775.8,0.00324781]
[1645918639808,1.89624584,2776.5,2776.2,0.00534375]
[1645918639809,0.69507584,2776.5,2776.2,0.00534375]
[1645918640408,1.59622584,2776.5,2776.2,0.00534375]
[1645918640615,3.84616873,2776.4,2776.2,0.00534375]
[1645918640808,0.90118,2776.2,2775.6,0.00324781]
[1645918641083,1.20118,2776.2,2775.5,3.1736]
[1645918642665,2.5000088,2776.5,2775.5,3.1736]
[1645918642666,1.04498,2776.5,2775.5,3.5297]
[1645918642862,1.04498,2776.5,2775.6,0.00324781]
[1645918642863,0.90108,2776.5,2775.6,0.00324781]
[1645918643065,1.0,2776.9,2775.7,0.3561]
[1645918643267,8.00071701,2777.3,2775.9,0.3561]
[1645918643463,0.144,2777.2,2776.0,0.00324781]
[1645918643664,5.15201701,2777.3,2776.0,0.00324781]
[1645918644067,0.90091,2777.1,2776.0,0.00324781]
[1645918644270,1.20091,2777.1,2776.0,0.00324781]
[1645918644467,1.20091,2777.1,2776.0,3.8561]
[1645918644670,1.20091,2777.1,2776.1,5.3451]
[1645918644929,1.20091,2777.1,2776.1,5.34843977]
[1645918645128,1.20091,2777.1,2776.2,0.00333977]
[1645918645531,1.20091,2777.1,2776.2,3.50333977]
[1645918645840,1.0447744,2777.4,2776.2,3.50333977]
[1645918645841,0.1439,2777.4,2776.2,14.73943977]
[1645918646036,2.1439,2778.0,2776.3,0.00333977]
[1645918646432,2.1439,2778.0,2776.3,0.52233977]
[1645918646633,3.1439,2778.0,2776.4,3.8561]
[1645918646834,3.5,2778.0,2776.5,3.56313977]
[1645918647032,3.8,2778.0,2776.6,0.00333977]
[1645918647433,0.90069,2777.8,2776.6,0.00333977]
[1645918647635,0.1439,2777.7,2776.6,0.00333977]
[1645918648234,0.1439,2777.7,2777.0,0.00533719]
[1645918649263,1.04465,2777.7,2776.6,0.00333977]
[1645918649465,0.90073,2777.5,2777.2,0.00533699]
[1645918649663,0.6,2777.6,2777.2,0.00533699]
[1645918649862,0.3,2777.6,2777.2,0.00533699]
[1645918650063,0.1439,2777.7,2777.2,0.00533699]
[1645918650466,0.3561,2777.6,2776.6,0.00333977]
[1645918650662,3.8561,2777.6,2776.6,0.00333977]
[1645918650864,5.1561,2777.6,2777.3,0.00533689]
[1645918651069,1.6561,2777.6,2777.3,0.00533689]
[1645918651262,0.6561,2777.6,2777.3,0.00533689]
[1645918651663,0.6561,2777.6,2776.6,0.00333977]
[1645918651862,0.3,2777.6,2777.3,0.00533689]
[1645918652302,1.64459,2777.7,2777.3,0.00533689]
[1645918652504,0.3561,2777.6,2777.3,0.00533689]
[1645918652704,1.50069,2777.7,2777.3,0.00533689]
[1645918652904,1.50069,2777.7,2776.6,0.00333977]
[1645918653106,1.50069,2777.7,2777.4,0.00533684]
[1645918653712,1.85679,2777.7,2777.4,0.00533684]
[1645918653907,1.85679,2777.7,2776.6,0.00333977]
[1645918654109,5.35679,2777.7,2776.6,0.00333977]
[1645918654311,6.35679,2777.7,2777.4,0.00533679]
[1645918654510,2.85679,2777.7,2777.4,0.00533679]
[1645918654710,1.85679,2777.7,2777.4,0.00533679]
[1645918654911,2.85679,2777.7,2777.4,0.00533679]
[1645918655211,1.50069,2777.7,2776.6,0.00333977]
[1645918655411,1.50069,2777.7,2777.4,0.00533679]
[1645918655412,6.00069,2777.7,2777.4,0.00533679]
[1645918655613,2.50069,2777.7,2777.4,0.00533679]
[1645918655813,1.50069,2777.7,2777.4,0.00533679]
[1645918656063,2.50069,2777.7,2777.4,0.00533679]
[1645918656353,0.3561,2777.6,2776.6,0.00333977]
[1645918656547,3.8561,2777.6,2776.6,0.00333977]
[1645918656748,1.3561,2777.6,2777.4,0.00533679]
[1645918657149,2.50069,2777.7,2777.4,0.00533679]
[1645918657550,2.50069,2777.7,2776.6,0.00333977]
[1645918657951,2.50069,2777.7,2777.4,0.00533679]
[1645918658760,2.50069,2777.7,2776.6,0.00333977]
[1645918659159,2.50069,2777.7,2777.4,0.00533679]
[1645918659559,2.50069,2777.7,2777.4,0.00125142]
[1645918660004,2.50069,2777.7,2776.6,0.00333977]
[1645918660407,2.85679,2777.7,2776.6,0.00333977]
[1645918660606,2.50069,2777.7,2776.6,0.00333977]
[1645918661807,2.50069,2777.7,2776.6,0.93031599]
[1645918662107,2.50069,2777.7,2776.8,1.0]
[1645918662308,2.50069,2777.7,2776.9,0.00333977]
[1645918662509,2.45069,2777.7,2776.9,0.00333977]
[1645918662907,1.45069,2777.7,2776.6,0.93128379]
[1645918663110,1.45069,2777.7,2776.7,0.00333977]
[1645918663959,1.45069,2777.7,2777.1,0.00533714]
[1645918664755,1.45069,2777.7,2776.7,0.00333977]
[1645918665158,1.45069,2777.7,2777.3,0.00533694]
[1645918665956,1.45069,2777.7,2776.7,0.00333977]
[1645918666157,4.95069,2777.7,2776.7,0.00333977]
[1645918666358,1.45069,2777.7,2777.3,0.00533703]
[1645918666559,2.45069,2777.7,2777.3,0.00533703]
[1645918666764,1.45069,2777.7,2777.3,0.00533703]
[1645918667158,1.45069,2777.7,2776.7,0.00333977]
[1645918667402,1.45069,2777.7,2777.3,0.00533703]
[1645918668404,1.45069,2777.7,2776.7,0.00333977]
[1645918668608,1.45069,2777.7,2777.3,0.00533703]
[1645918669712,1.45069,2777.7,2776.7,0.00333977]
[1645918669910,1.45069,2777.7,2777.3,0.00533703]
[1645918669911,0.90069,2777.7,2777.3,0.00533703]
[1645918670810,0.90069,2777.7,2776.7,0.00333977]
[1645918671071,0.90069,2777.7,2777.3,0.00533703]
[1645918671359,1.20069,2777.7,2777.3,0.00533703]
[1645918671561,1.50069,2777.7,2777.3,0.00533703]
[1645918671967,0.56547694,2777.6,2776.7,0.00333977]
[1645918672161,0.56547694,2777.6,2777.3,0.00533703]
[1645918672373,0.56547694,2777.6,2776.6,0.3561]
[1645918672661,0.56547694,2777.6,2776.5,3.2037]
[1645918673067,0.56547694,2777.6,2776.5,3.88514712]
[1645918673668,0.56547694,2777.6,2776.5,3.2037]
[1645918673875,0.56547694,2777.6,2776.5,3.5598]
[1645918674067,0.56547694,2777.6,2776.5,4.24124712]
[1645918674266,0.56547694,2777.6,2776.5,3.88514712]
[1645918675111,0.56547694,2777.6,2776.6,0.68144712]
[1645918675914,0.56547694,2777.6,2777.0,0.00279923]
[1645918676818,0.56547694,2777.6,2776.5,3.88514712]
[1645918677024,0.56547694,2777.6,2777.2,0.00533704]
[1645918678020,0.56547694,2777.6,2776.6,0.68144712]
[1645918678550,0.56547694,2777.6,2777.2,0.00533713]
[1645918679151,0.56547694,2777.6,2776.7,0.00332266]
[1645918679351,0.56547694,2777.6,2776.7,0.68476978]
[1645918679558,0.56547694,2777.6,2777.2,0.00533713]
[1645918680454,0.0040908,2777.1,2776.8,0.00332266]
[1645918680657,0.0040908,2777.1,2776.6,0.00332266]
[1645918680853,0.0040908,2777.1,2776.5,3.88514712]
[1645918681654,0.0040908,2777.1,2776.5,3.2037]
[1645918681853,0.0040908,2777.1,2776.7,0.00533755]
[1645918682906,0.0040908,2777.1,2776.5,3.2037]
[1645918683107,0.0040908,2777.1,2776.8,0.00533745]
[1645918684109,0.0040908,2777.1,2776.5,3.2037]
[1645918684310,0.0040908,2777.1,2776.8,0.00533739]
[1645918684508,5.0109808,2777.4,2776.8,0.00533739]
[1645918685311,5.0109808,2777.4,2776.6,0.00332266]
[1645918685610,1.5109808,2777.4,2777.0,0.0051803]
[1645918685810,1.1548808,2777.4,2777.0,0.0051803]
[1645918686474,1.1548808,2777.4,2776.6,0.00332266]
[1645918686776,1.1548808,2777.4,2777.1,0.0051802]
[1645918687583,1.5109808,2777.4,2776.7,0.00332266]
[1645918687779,0.6101908,2777.4,2776.7,0.00332266]
[1645918687979,0.2540908,2777.4,2777.1,0.00518015]
[1645918688383,1.4439,2777.6,2777.1,0.00518015]
[1645918688579,0.4439,2777.6,2777.1,0.00518015]
[1645918688782,0.4439,2777.6,2776.7,0.00332266]
[1645918688984,3.9439,2777.6,2777.2,0.00533709]
[1645918689180,0.4439,2777.6,2777.2,0.00533709]
[1645918689381,1.4439,2777.6,2777.2,0.00533709]
[1645918689587,0.1439,2777.7,2777.2,0.00533709]
[1645918689824,2.80132,2778.1,2777.2,0.00533709]
[1645918689825,1.02152573,2778.1,2777.2,0.00533709]
[1645918690122,0.2561,2778.1,2777.1,1.20044712]
[1645918690314,1.70420569,2778.2,2777.1,4.70376978]
[1645918690513,1.06012091,2778.2,2777.2,0.00533718]
[1645918690716,1.41622091,2778.2,2777.2,0.00533718]
[1645918690913,1.41622091,2778.2,2777.2,0.6867843]
[1645918691116,1.71622091,2778.2,2777.2,0.6867843]
[1645918691316,1.69487996,2778.2,2777.2,0.68144712]
[1645918691514,1.69487996,2778.2,2777.2,0.68678453]
[1645918691916,1.33877996,2778.2,2777.2,0.68678453]
[1645918692318,0.56900063,2778.1,2777.3,3.5]
[1645918692522,0.56900063,2778.1,2777.4,0.93639511]
[1645918692726,0.56900063,2778.1,2777.5,3.5]
[1645918692932,0.51900063,2778.1,2777.6,0.93639511]
[1645918693126,0.3,2778.2,2777.6,0.93639511]
[1645918693655,0.3,2778.3,2777.6,0.93639511]
[1645918693857,0.02134042,2778.5,2777.6,0.93639511]
[1645918694057,1.04286615,2778.5,2777.6,0.93639511]
[1645918694257,1.04286615,2778.5,2777.4,1.1988]
[1645918694457,0.66542573,2778.4,2777.4,1.1988]
[1645918694657,1.94332615,2778.5,2777.4,1.1988]
[1645918694955,0.3,2778.4,2777.4,1.1988]
[1645918695457,1.64286615,2778.5,2777.4,1.1988]
[1645918695654,1.34286615,2778.5,2777.4,1.1988]
[1645918696058,1.32152573,2778.5,2777.4,1.1988]
[1645918696256,1.34286595,2778.5,2777.4,1.1988]
[1645918697302,1.32152573,2778.5,2777.4,1.1988]
[1645918697503,1.34286595,2778.5,2777.4,1.1988]
[1645918697703,0.98676595,2778.5,2777.4,1.1988]
[1645918698506,0.3,2778.5,2777.4,1.1988]
[1645918698708,0.02134022,2778.5,2777.4,1.1988]
[1645918698911,0.37744022,2778.5,2777.4,1.1988]
[1645918699713,0.3561,2778.5,2777.4,1.1988]
[1645918699912,0.37744022,2778.5,2777.4,1.1988]
[1645918700914,0.3561,2778.5,2777.4,1.1988]
[1645918701159,0.37744022,2778.5,2777.4,1.1988]
[1645918702164,0.3561,2778.5,2777.4,1.1988]
[1645918702364,0.37744022,2778.5,2777.4,1.1988]
[1645918703262,0.3561,2778.5,2777.4,1.1988]
[1645918703663,0.37744022,2778.5,2777.4,1.1988]
[1645918703863,0.52134022,2778.5,2777.4,1.1988]
[1645918704465,4.66542573,2778.5,2777.4,1.1988]
[1645918704664,1.18676595,2778.5,2777.4,1.1988]
[1645918705749,1.16542573,2778.5,2777.4,1.1988]
[1645918705943,1.18676595,2778.5,2777.4,1.1988]
[1645918706145,4.68676595,2778.5,2777.4,1.1988]
[1645918706652,0.52134022,2778.5,2777.4,1.1988]
[1645918706850,0.5,2778.5,2777.4,1.1988]
[1645918707252,0.52134022,2778.5,2777.4,1.1988]
[1645918707453,0.83066595,2778.5,2777.4,1.1988]
[1645918707653,0.16524022,2778.5,2777.4,1.1988]
[1645918708052,0.1439,2778.5,2777.4,1.1988]
[1645918708257,0.16524022,2778.5,2777.4,1.1988]
[1645918708656,0.52134022,2778.5,2777.4,1.1988]
[1645918709257,0.5,2778.5,2777.4,1.1988]
[1645918709456,0.52134022,2778.5,2777.4,1.1988]
[1645918710259,4.02134022,2778.5,2777.4,1.1988]
[1645918710459,0.5,2778.5,2777.4,1.1988]
[1645918710661,4.02134022,2778.5,2777.4,1.1988]
[1645918711263,0.52134022,2778.5,2777.4,1.1988]
[1645918711660,0.5,2778.5,2777.4,1.1988]
[1645918711859,0.52134022,2778.5,2777.4,1.1988]
[1645918712913,0.92283515,2778.4,2777.5,0.93504455]
[1645918713118,0.92283515,2778.3,2777.5,0.93504455]
[1645918713319,0.56673515,2778.2,2777.5,0.93504455]
[1645918714117,0.56673515,2778.2,2777.5,0.93384943]
[1645918715720,0.56673515,2778.2,2777.4,1.1988]
[1645918719458,4.42283515,2778.2,2777.3,3.0871]
[1645918719659,16.44372573,2778.2,2777.2,0.0053375]
[1645918719913,0.5,2778.1,2777.2,0.0053375]
[1645918720211,0.3561,2777.9,2777.1,0.00332266]
[1645918720411,0.3561,2777.9,2777.2,0.00533741]
[1645918720412,0.3561,2777.7,2777.2,0.00533741]
[1645918720613,1.25687,2777.6,2777.2,0.00533741]
[1645918720815,1.55687,2777.6,2777.2,0.00533741]
[1645918721015,5.05687,2777.6,2777.2,0.00533741]
[1645918721215,5.05687,2777.6,2777.0,5.2034]
[1645918721417,6.05687,2777.6,2777.0,5.2034]
[1645918721613,6.05687,2777.6,2777.2,0.00533713]
[1645918722414,6.05687,2777.6,2777.0,5.2034]
[1645918722617,6.05687,2777.6,2776.8,0.00332266]
[1645918722821,0.3561,2777.4,2776.6,0.00332266]
[1645918723018,0.90094,2777.1,2776.6,0.00332266]
[1645918723219,0.90094,2777.1,2776.5,4.4454]
[1645918723418,1.20094,2777.1,2776.5,4.4454]
[1645918723860,1.20094,2777.1,2776.7,0.00279553]
[1645918724861,1.20094,2777.1,2776.5,4.4454]
[1645918725059,1.20094,2777.1,2776.8,0.00533744]
[1645918726161,1.20094,2777.1,2776.5,4.4454]
[1645918726162,1.20094,2777.1,2776.5,3.2203]
[1645918726360,1.20094,2777.1,2776.8,0.00533739]
[1645918726960,0.3,2777.1,2776.8,0.00533739]
[1645918727412,4.9439,2777.3,2776.5,3.2203]
[1645918727610,4.9439,2777.3,2776.8,0.00533739]
[1645918728009,1.4439,2777.3,2776.8,0.00533739]
[1645918728211,0.4439,2777.3,2776.8,0.00533739]
[1645918728412,0.4439,2777.3,2776.6,0.00332266]
[1645918728612,0.3,2777.3,2776.6,0.00332266]
[1645918728810,0.3,2777.3,2776.9,0.00533729]
[1645918729414,3.8,2777.3,2776.9,0.00533729]
[1645918729610,4.8,2777.3,2776.6,0.00332266]
[1645918730011,4.8,2777.3,2777.0,0.00533724]
[1645918730213,1.3,2777.3,2777.0,0.00533724]
[1645918730711,0.3,2777.3,2777.0,0.00533724]
[1645918730911,0.3,2777.3,2776.6,0.00332266]
[1645918731175,0.90071,2777.7,2777.0,0.00533719]
[1645918731375,0.90069,2777.9,2777.0,0.00533719]
[1645918732174,1.25679,2777.9,2776.8,0.00332266]
[1645918732371,1.25679,2777.9,2777.1,0.00533737]
[1645918732572,0.9007,2777.7,2777.1,0.00533737]
[1645918732972,1.5007,2777.7,2777.1,0.00533737]
[1645918733373,1.5007,2777.7,2776.8,0.00332266]
[1645918733576,1.5007,2777.7,2777.1,0.00533733]
[1645918733976,1.49246986,2777.7,2777.1,0.00533733]
[1645918734581,1.49246986,2777.7,2776.9,0.1439]
[1645918734815,1.49246986,2777.7,2777.1,0.00279206]
[1645918735615,0.56827559,2777.6,2776.9,0.93395128]
[1645918736018,0.56827559,2777.6,2777.1,0.00279206]
[1645918736919,0.56827559,2777.6,2776.9,0.93395128]
[1645918737124,0.56827559,2777.6,2777.1,0.00533383]
[1645918737419,0.56827559,2777.6,2777.2,0.93395128]
[1645918738317,0.56827559,2777.6,2777.3,0.93395128]
[1645918738554,0.56827559,2777.6,2777.4,0.93395128]
[1645918738761,0.56827559,2777.6,2777.5,0.93395128]
[1645918739161,0.56827559,2777.6,2777.2,0.93395128]
[1645918739561,0.56827559,2777.6,2777.3,0.93395128]
[1645918739763,0.56827559,2777.6,2777.2,0.93395128]
[1645918739959,0.56827559,2777.6,2777.3,0.93395128]
[1645918740160,0.56827559,2777.6,2777.4,0.93395128]
[1645918740361,0.56827559,2777.6,2777.5,0.93395128]
[1645918740560,0.56827559,2777.6,2777.2,0.93395128]
[1645918740763,0.56827559,2777.6,2777.3,0.93395128]
[1645918740764,1.46903559,2777.6,2777.3,0.93395128]
[1645918740963,1.46903559,2777.6,2776.8,0.00332266]
[1645918740964,0.56827559,2777.5,2776.8,0.00332266]